[Event "41st Jacques-Lemans-Open 2022"]
[Site "St. Veit/Glan"]
[Date "2022.07.09"]
[Round "1.25"]
[White "Holzbauer, Johannes"]
[Black "Mitscherling, Andreas"]
[Result "1/2-1/2"]
[ECO "A45"]
[WhiteElo "1917"]
[BlackElo "2165"]
[Annotator "RC"]
[PlyCount "55"]
[EventDate "2022.07.09"]
[EventType "swiss"]
[EventCountry "AUT"]
[SourceTitle "playchess.com"]
[Source "ChessBase"]
[SourceQuality "1"]
[TimeControl "40/5400+30:1800+30"]

1. d4 {[%emt 0:00:07]} Nf6 {[%emt 0:00:10]} 2. Bf4 {[%emt 0:00:06]} d5 {[%emt 0:01:08]} 3. c3 {[%emt 0:00:50]} e6 {[%emt 0:00:52]} 4. e3 {[%emt 0:00:22]} Bd6 {[%emt 0:00:36]} 5. Bg3 {[%emt 0:00:08]} c5 {[%emt 0:00:21]} 6. Nd2 {[%emt 0:00:42]} Nc6 {[%emt 0:00:21]} 7. Ngf3 {[%emt 0:00:46]} O-O {[%emt 0:04:13]} 8. Bd3 {[%emt 0:02:45]} b6 {[%emt 0:02:23]} 9. Ne5 {[%emt 0:01:44]} Bb7 {[%emt 0:00:41]} 10. O-O {[%emt 0:01:52]} Qc7 {[%emt 0:00:55]} 11. f4 {[%emt 0:02:28]} Ne7 {[%emt 0:00:16]} 12. Qf3 {[%emt 0:02:17]} Nf5 {[%emt 0:03:42]} 13. Bf2 {[%emt 0:01:24]} Be7 {[%emt 0:00:26]} 14. Ng4 {[%emt 0:13:14]} Nxg4 {[%emt 0:14:12]} 15. Qxg4 {[%emt 0:00:08]} Nd6 {[%emt 0:00:51]} 16. Qh3 {[%emt 0:05:57]} Ne4 {[%emt 0:03:01]} 17. g4 {[%emt 0:08:06]} f5 {[%emt 0:04:20]} 18. Nf3 {[%emt 0:09:31]} a5 {[%emt 0:06:57]} 19. Bxe4 {[%emt 0:09:28]} dxe4 {[%emt 0:02:18]} 20. Ng5 {[%emt 0:01:23]} Bxg5 {[%emt 0:00:10]} 21. fxg5 {[%emt 0:00:04]} Ba6 {[%emt 0:13:47]} 22. Rfe1 {[%emt 0:05:19]} Qe7 {[%emt 0:01:41]} 23. Qh4 {[%emt 0:01:33]} Bd3 {[%emt 0:02:02]} 24. Bg3 {[%emt 0:00:45]} fxg4 {[%emt 0:06:21]} 25. Bf4 {[%emt 0:01:38]} cxd4 {[%emt 0:02:05]} 26. cxd4 {[%emt 0:00:22]} Rac8 {[%emt 0:08:03]} 27. Rac1 {[%emt 0:01:00]} e5 {[%emt 0:00:47]} 28. Rxc8 {[%emt 0:05:52]} 1/2-1/2

[Event "41st Jacques-Lemans-Open 2022"]
[Site "St. Veit/Glan"]
[Date "2022.07.09"]
[Round "1.27"]
[White "Vlasak, Reinhard"]
[Black "Koelber, Daniel"]
[Result "0-1"]
[ECO "B94"]
[WhiteElo "1915"]
[BlackElo "2176"]
[Annotator "RC"]
[PlyCount "52"]
[EventDate "2022.07.09"]
[EventType "swiss"]
[EventCountry "AUT"]
[SourceTitle "playchess.com"]
[Source "ChessBase"]
[SourceQuality "1"]
[TimeControl "40/5400+30:1800+30"]

1. e4 {[%emt 0:00:11]} c5 {[%emt 0:00:08]} 2. Nf3 {[%emt 0:00:06]} d6 {[%emt 0:00:08]} 3. d4 {[%emt 0:00:10]} cxd4 {[%emt 0:00:06]} 4. Nxd4 {[%emt 0:00:05]} Nf6 {[%emt 0:00:08]} 5. Nc3 {[%emt 0:00:07]} a6 {[%emt 0:00:05]} 6. Bg5 {[%emt 0:01:42]} Nbd7 {[%emt 0:00:44]} 7. f4 {[%emt 0:01:32]} Qa5 {[%emt 0:02:05]} 8. Qf3 {[%emt 0:05:46]} h6 {[%emt 0:01:17]} 9. Bh4 {[%emt 0:02:55]} e5 {[%emt 0:01:37]} 10. Nb3 {[%emt 0:03:39]} Qc7 {[%emt 0:01:45]} 11. O-O-O {[%emt 0:02:22]} exf4 {[%emt 0:02:38]} 12. Bxf6 {[%emt 0:09:59]} Nxf6 {[%emt 0:00:33]} 13. Nd5 {[%emt 0:00:49]} Nxd5 {[%emt 0:00:42]} 14. exd5 {[%emt 0:00:21]} Be7 {[%emt 0:02:27]} 15. Kb1 {[%emt 0:01:27]} Bf5 {[%emt 0:10:40]} 16. Bd3 {[%emt 0:09:36]} Bxd3 {[%emt 0:01:22]} 17. Rxd3 {[%emt 0:00:11]} O-O {[%emt 0:00:38]} 18. Qxf4 {[%emt 0:01:40]} Bf6 {[%emt 0:01:49]} 19. Nd4 {[%emt 0:09:42]} Rac8 {[%emt 0:02:30]} 20. c3 {[%emt 0:02:29]} Qb6 {[%emt 0:07:03]} 21. Nf5 {[%emt 0:08:33]} Rxc3 {[%emt 0:27:13]} 22. Nxh6+ {[%emt 0:07:03]} Kh8 {[%emt 0:03:22]} 23. Ng4 {[%emt 0:03:00]} Rxd3 {[%emt 0:06:45]} 24. Nxf6 {[%emt 0:04:06]} Qd4 {[%emt 0:00:58]} 25. Ne4 {[%emt 0:00:55]} Re8 {[%emt 0:02:17]} 26. Re1 {[%emt 0:03:43]} Rd1+ {[%emt 0:00:13]} 0-1

[Event "41st Jacques-Lemans-Open 2022"]
[Site "St. Veit/Glan"]
[Date "2022.07.09"]
[Round "1.28"]
[White "Frank, Emanuel"]
[Black "Ganauser, Eduard"]
[Result "1-0"]
[ECO "E40"]
[WhiteElo "2160"]
[BlackElo "1914"]
[Annotator "RC"]
[PlyCount "33"]
[EventDate "2022.07.09"]
[EventType "swiss"]
[EventCountry "AUT"]
[SourceTitle "playchess.com"]
[Source "ChessBase"]
[SourceQuality "1"]
[TimeControl "40/5400+30:1800+30"]

1. d4 {[%emt 0:00:03]} Nf6 {[%emt 0:00:18]} 2. c4 {[%emt 0:00:07]} e6 {[%emt 0:00:12]} 3. Nc3 {[%emt 0:00:06]} Bb4 {[%emt 0:00:17]} 4. e3 {[%emt 0:01:01]} Bxc3+ {[%emt 0:00:33]} 5. bxc3 {[%emt 0:00:07]} d6 {[%emt 0:00:26]} 6. Bd3 {[%emt 0:01:28]} Nbd7 {[%emt 0:00:40]} 7. Ne2 {[%emt 0:04:57]} b6 {[%emt 0:01:09]} 8. O-O {[%emt 0:01:23]} Bb7 {[%emt 0:00:10]} 9. Ng3 {[%emt 0:02:20]} O-O {[%emt 0:00:20]} 10. e4 {[%emt 0:06:44]} h6 {[%emt 0:05:59]} 11. f4 {[%emt 0:08:59]} e5 {[%emt 0:04:35]} 12. Qf3 {[%emt 0:02:56]} Nh7 {[%emt 0:07:56]} 13. Nf5 {[%emt 0:03:31]} Qf6 {[%emt 0:02:58]} 14. fxe5 {[%emt 0:04:31]} dxe5 15. Qg4 g5 {[%emt 0:17:59]} 16. Qh5 {[%emt 0:01:18]} Qe6 {[%emt 0:09:20]} 17. d5 {[%emt 0:01:15]} 1-0

[Event "41st Jacques-Lemans-Open 2022"]
[Site "St. Veit/Glan"]
[Date "2022.07.09"]
[Round "1.29"]
[White "Ebner, Johann"]
[Black "Schein, Karl-Heinz"]
[Result "0-1"]
[ECO "D10"]
[WhiteElo "1907"]
[BlackElo "2167"]
[Annotator "RC"]
[PlyCount "76"]
[EventDate "2022.07.09"]
[EventType "swiss"]
[EventCountry "AUT"]
[SourceTitle "playchess.com"]
[Source "ChessBase"]
[SourceQuality "1"]
[TimeControl "40/5400+30:1800+30"]

1. d4 {[%emt 0:01:03]} d5 {[%emt 0:00:19]} 2. c4 {[%emt 0:00:16]} c6 {[%emt 0:00:18]} 3. cxd5 {[%emt 0:01:00]} cxd5 {[%emt 0:00:12]} 4. Nf3 {[%emt 0:00:09]} Nf6 {[%emt 0:00:28]} 5. Nc3 {[%emt 0:00:10]} Nc6 {[%emt 0:00:30]} 6. Bf4 {[%emt 0:00:11]} e6 {[%emt 0:03:06]} 7. e3 {[%emt 0:01:34]} Bd6 {[%emt 0:00:36]} 8. Bg3 {[%emt 0:00:35]} O-O {[%emt 0:00:48]} 9. Bd3 {[%emt 0:00:42]} a6 {[%emt 0:01:08]} 10. a3 {[%emt 0:03:18]} b5 {[%emt 0:03:01]} 11. b4 {[%emt 0:04:57]} Bb7 {[%emt 0:00:48]} 12. O-O {[%emt 0:00:09]} Bxg3 {[%emt 0:02:44]} 13. hxg3 {[%emt 0:00:10]} Nd7 {[%emt 0:01:39]} 14. Qb3 {[%emt 0:03:06]} Qe7 {[%emt 0:06:15]} 15. Rab1 {[%emt 0:09:32]} Rfb8 {[%emt 0:11:17]} 16. e4 {[%emt 0:32:03]} dxe4 {[%emt 0:02:22]} 17. Nxe4 {[%emt 0:07:03]} Nd8 {[%emt 0:02:42]} 18. Nc5 {[%emt 0:02:50]} Bd5 {[%emt 0:01:45]} 19. Qc2 {[%emt 0:01:00]} h6 {[%emt 0:00:20]} 20. Ne5 {[%emt 0:05:21]} Nxe5 {[%emt 0:10:24]} 21. dxe5 {[%emt 0:00:13]} Nb7 {[%emt 0:06:46]} 22. Rbc1 {[%emt 0:12:26]} Rc8 {[%emt 0:01:31]} 23. Bh7+ {[%emt 0:00:13]} Kh8 {[%emt 0:00:53]} 24. Be4 {[%emt 0:00:16]} Nxc5 {[%emt 0:04:11]} 25. Bxd5 {[%emt 0:01:00]} exd5 {[%emt 0:00:42]} 26. bxc5 {[%emt 0:00:49]} Rc6 {[%emt 0:02:01]} 27. Qb2 {[%emt 0:05:08]} Rac8 {[%emt 0:00:36]} 28. Rc2 {[%emt 0:03:42]} Rxc5 {[%emt 0:01:31]} 29. Qb4 {[%emt 0:01:25]} Qc7 {[%emt 0:00:46]} 30. Re2 {[%emt 0:02:27]} Rc4 {[%emt 0:03:13]} 31. Qb2 {[%emt 0:00:43]} Rc1 {[%emt 0:04:07]} 32. Ree1 {[%emt 0:01:55]} Rxe1 {[%emt 0:03:35]} 33. Rxe1 {[%emt 0:00:04]} Qc3 {[%emt 0:00:35]} 34. Qe2 {[%emt 0:00:10]} d4 {[%emt 0:02:44]} 35. Rd1 {[%emt 0:01:09]} Rd8 {[%emt 0:02:21]} 36. e6 {[%emt 0:01:06]} fxe6 {[%emt 0:01:03]} 37. Qxe6 {[%emt 0:00:05]} Qxa3 {[%emt 0:01:42]} 38. Qb6 {[%emt 0:00:54]} Qd6 {[%emt 0:00:21]} 0-1

[Event "41st Jacques-Lemans-Open 2022"]
[Site "St. Veit/Glan"]
[Date "2022.07.09"]
[Round "1.30"]
[White "Miazhynski, Yuri"]
[Black "Milde, Lars"]
[Result "1-0"]
[ECO "B01"]
[WhiteElo "2166"]
[BlackElo "1892"]
[Annotator "RC"]
[PlyCount "75"]
[EventDate "2022.07.09"]
[EventType "swiss"]
[EventCountry "AUT"]
[SourceTitle "playchess.com"]
[Source "ChessBase"]
[SourceQuality "1"]
[TimeControl "40/5400+30:1800+30"]

1. e4 {[%emt 0:00:09]} d5 {[%emt 0:00:13]} 2. exd5 {[%emt 0:00:27]} Qxd5 {[%emt 0:00:08]} 3. Nf3 {[%emt 0:00:11]} Bg4 {[%emt 0:01:30]} 4. Be2 {[%emt 0:01:09]} Nc6 {[%emt 0:00:55]} 5. O-O {[%emt 0:01:44]} O-O-O {[%emt 0:01:19]} 6. b4 {[%emt 0:06:09]} Nf6 {[%emt 0:09:44]} 7. b5 {[%emt 0:12:56]} Nd4 {[%emt 0:02:30]} 8. Nxd4 {[%emt 0:08:27]} Qxd4 {[%emt 0:00:16]} 9. Nc3 {[%emt 0:07:02]} Bxe2 {[%emt 0:01:33]} 10. Qxe2 {[%emt 0:03:33]} e6 {[%emt 0:01:13]} 11. Qe3 {[%emt 0:30:14]} Qxe3 {[%emt 0:15:20]} 12. fxe3 {[%emt 0:00:56]} Bb4 {[%emt 0:01:09]} 13. Nb1 {[%emt 0:01:26]} Rd5 {[%emt 0:18:31]} 14. a4 {[%emt 0:02:54]} Re8 {[%emt 0:03:32]} 15. h3 {[%emt 0:03:42]} e5 {[%emt 0:11:35]} 16. d3 {[%emt 0:04:20]} e4 {[%emt 0:07:15]} 17. d4 {[%emt 0:00:50]} Re7 {[%emt 0:04:30]} 18. c4 {[%emt 0:01:35]} Rg5 {[%emt 0:00:53]} 19. Bd2 {[%emt 0:03:34]} Bxd2 {[%emt 0:05:17]} 20. Nxd2 {[%emt 0:00:02]} Nd7 {[%emt 0:02:19]} 21. Rf4 {[%emt 0:02:46]} f5 {[%emt 0:00:48]} 22. Raf1 {[%emt 0:00:28]} g6 {[%emt 0:00:21]} 23. Ra1 {[%emt 0:03:31]} Nf6 {[%emt 0:01:54]} 24. Nf1 {[%emt 0:01:43]} Nh5 {[%emt 0:01:07]} 25. Rf2 {[%emt 0:00:17]} Ng3 {[%emt 0:02:22]} 26. Nxg3 {[%emt 0:00:50]} Rxg3 {[%emt 0:00:01]} 27. Re1 {[%emt 0:00:18]} c6 {[%emt 0:01:12]} 28. Kh2 {[%emt 0:00:30]} Rg5 {[%emt 0:00:07]} 29. Rb1 {[%emt 0:00:34]} Rc7 {[%emt 0:01:09]} 30. b6 {[%emt 0:01:31]} axb6 {[%emt 0:00:01]} 31. Rxb6 {[%emt 0:00:02]} h5 {[%emt 0:01:05]} 32. c5 {[%emt 0:01:33]} h4 {[%emt 0:00:23]} 33. a5 {[%emt 0:00:20]} Rg3 {[%emt 0:00:39]} 34. Re2 {[%emt 0:00:30]} Rd7 {[%emt 0:00:51]} 35. a6 {[%emt 0:00:16]} bxa6 {[%emt 0:02:21]} 36. Rxc6+ Kb7 37. Rb6+ {[%emt 0:00:21]} Ka7 {[%emt 0:00:01]} 38. Ra2 {[%emt 0:00:12]} 1-0

[Event "41st Jacques-Lemans-Open 2022"]
[Site "St. Veit/Glan"]
[Date "2022.07.09"]
[Round "1.31"]
[White "Praxmarer, Christian"]
[Black "Schwab, Lukas"]
[Result "1/2-1/2"]
[ECO "A03"]
[WhiteElo "1906"]
[BlackElo "2166"]
[Annotator "RC"]
[PlyCount "62"]
[EventDate "2022.07.09"]
[EventType "swiss"]
[EventCountry "AUT"]
[SourceTitle "playchess.com"]
[Source "ChessBase"]
[SourceQuality "1"]
[TimeControl "40/5400+30:1800+30"]

1. f4 {[%emt 0:00:04]} d5 {[%emt 0:00:16]} 2. Nf3 {[%emt 0:00:07]} Nf6 {[%emt 0:00:17]} 3. g3 {[%emt 0:02:07]} c5 {[%emt 0:01:41]} 4. Bg2 {[%emt 0:00:52]} g6 {[%emt 0:01:20]} 5. O-O {[%emt 0:00:54]} Bg7 {[%emt 0:00:30]} 6. d3 {[%emt 0:02:54]} O-O {[%emt 0:00:41]} 7. Qe1 {[%emt 0:01:39]} d4 {[%emt 0:06:12]} 8. Nbd2 {[%emt 0:07:57]} Nd5 {[%emt 0:07:18]} 9. Nc4 {[%emt 0:12:40]} Nc6 {[%emt 0:04:09]} 10. e4 {[%emt 0:12:14]} dxe3 {[%emt 0:01:50]} 11. Nxe3 {[%emt 0:01:25]} Nxe3 {[%emt 0:06:04]} 12. Qxe3 {[%emt 0:01:31]} Nd4 {[%emt 0:01:40]} 13. Qf2 {[%emt 0:04:31]} Qc7 {[%emt 0:25:20]} 14. Ne5 {[%emt 0:11:58]} Be6 {[%emt 0:09:42]} 15. c3 {[%emt 0:04:25]} Nb5 {[%emt 0:01:26]} 16. Be3 {[%emt 0:03:07]} Rac8 {[%emt 0:00:16]} 17. a4 {[%emt 0:00:28]} Nd6 {[%emt 0:00:13]} 18. d4 {[%emt 0:03:51]} Nc4 {[%emt 0:14:31]} 19. Nxc4 {[%emt 0:07:42]} Bxc4 {[%emt 0:00:54]} 20. Rfd1 {[%emt 0:02:07]} cxd4 {[%emt 0:05:54]} 21. Bxd4 {[%emt 0:00:02]} b6 {[%emt 0:00:30]} 22. Bxg7 {[%emt 0:03:55]} Kxg7 {[%emt 0:00:02]} 23. Rd2 {[%emt 0:03:32]} Rfd8 {[%emt 0:01:04]} 24. Rd4 {[%emt 0:05:42]} Rxd4 {[%emt 0:04:02]} 25. Qxd4+ {[%emt 0:00:02]} Kg8 {[%emt 0:00:07]} 26. Rd1 {[%emt 0:00:59]} Bb3 {[%emt 0:00:15]} 27. Rd2 {[%emt 0:00:58]} Qc5 {[%emt 0:01:52]} 28. Qxc5 {[%emt 0:01:08]} Rxc5 {[%emt 0:00:02]} 29. Rd7 {[%emt 0:01:24]} Ra5 {[%emt 0:01:14]} 30. Bc6 {[%emt 0:01:36]} e6 {[%emt 0:01:43]} 31. Rd4 {[%emt 0:00:34]} Rc5 {[%emt 0:00:44]} 1/2-1/2

[Event "41st Jacques-Lemans-Open 2022"]
[Site "St. Veit/Glan"]
[Date "2022.07.09"]
[Round "1.32"]
[White "Sucher, Johannes"]
[Black "Kerschenbauer, Franz"]
[Result "1-0"]
[ECO "B06"]
[WhiteElo "2164"]
[BlackElo "1898"]
[Annotator "RC"]
[PlyCount "43"]
[EventDate "2022.07.09"]
[EventType "swiss"]
[EventCountry "AUT"]
[SourceTitle "playchess.com"]
[Source "ChessBase"]
[SourceQuality "1"]
[TimeControl "40/5400+30:1800+30"]

1. d4 {[%emt 0:00:03]} g6 {[%emt 0:02:41]} 2. e4 {[%emt 0:00:19]} Bg7 {[%emt 0:00:04]} 3. Nc3 {[%emt 0:00:17]} d6 {[%emt 0:00:08]} 4. Bg5 {[%emt 0:00:14]} c5 {[%emt 0:04:38]} 5. Bb5+ {[%emt 0:03:45]} Nd7 {[%emt 0:09:47]} 6. Nf3 {[%emt 0:04:54]} a6 {[%emt 0:06:26]} 7. Be2 {[%emt 0:03:02]} cxd4 {[%emt 0:19:47]} 8. Nxd4 {[%emt 0:01:51]} Ngf6 {[%emt 0:10:03]} 9. Qd2 {[%emt 0:02:32]} h6 {[%emt 0:00:23]} 10. Be3 {[%emt 0:00:34]} b5 {[%emt 0:04:19]} 11. a3 {[%emt 0:10:38]} Bb7 {[%emt 0:02:23]} 12. f3 {[%emt 0:00:17]} Nb6 {[%emt 0:13:21]} 13. O-O {[%emt 0:04:51]} Kf8 {[%emt 0:05:33]} 14. Rad1 {[%emt 0:11:44]} Kg8 {[%emt 0:00:26]} 15. e5 {[%emt 0:06:24]} Nfd5 {[%emt 0:06:57]} 16. f4 {[%emt 0:13:08]} Nxe3 {[%emt 0:06:11]} 17. Qxe3 {[%emt 0:00:13]} Kh7 {[%emt 0:01:05]} 18. f5 {[%emt 0:01:57]} Nd5 {[%emt 0:02:54]} 19. Nxd5 {[%emt 0:06:34]} Bxd5 {[%emt 0:00:36]} 20. e6 {[%emt 0:00:39]} Bxd4 {[%emt 0:02:15]} 21. Qxd4 {[%emt 0:01:24]} fxe6 {[%emt 0:00:28]} 22. fxg6+ {[%emt 0:00:22]} 1-0

[Event "41st Jacques-Lemans-Open 2022"]
[Site "St. Veit/Glan"]
[Date "2022.07.09"]
[Round "1.33"]
[White "Wiener, Alexander"]
[Black "Besner, Bernhard"]
[Result "0-1"]
[ECO "B01"]
[WhiteElo "1896"]
[BlackElo "2164"]
[Annotator "RC"]
[PlyCount "102"]
[EventDate "2022.07.09"]
[EventType "swiss"]
[EventCountry "AUT"]
[SourceTitle "playchess.com"]
[Source "ChessBase"]
[SourceQuality "1"]
[TimeControl "40/5400+30:1800+30"]

1. e4 {[%emt 0:00:09]} d5 {[%emt 0:00:04]} 2. exd5 {[%emt 0:00:39]} Qxd5 {[%emt 0:01:16]} 3. Nc3 {[%emt 0:00:22]} Qa5 {[%emt 0:00:13]} 4. Bc4 {[%emt 0:00:32]} Nf6 {[%emt 0:00:16]} 5. d3 {[%emt 0:01:06]} c6 {[%emt 0:01:06]} 6. Nf3 {[%emt 0:01:58]} Bg4 {[%emt 0:00:53]} 7. h3 {[%emt 0:00:23]} Qh5 {[%emt 0:01:14]} 8. Qe2 {[%emt 0:05:20]} Nbd7 {[%emt 0:02:21]} 9. Bf4 {[%emt 0:08:36]} e6 {[%emt 0:00:53]} 10. O-O-O {[%emt 0:01:46]} Bxf3 {[%emt 0:00:13]} 11. gxf3 {[%emt 0:00:07]} Qf5 {[%emt 0:09:05]} 12. Bg3 {[%emt 0:04:51]} Nb6 {[%emt 0:00:59]} 13. Bb3 {[%emt 0:01:23]} Be7 {[%emt 0:06:14]} 14. Kb1 {[%emt 0:02:57]} O-O-O {[%emt 0:00:53]} 15. Ne4 {[%emt 0:06:01]} Rd7 {[%emt 0:01:14]} 16. Rdg1 {[%emt 0:06:26]} g6 {[%emt 0:06:24]} 17. h4 {[%emt 0:05:07]} Nbd5 {[%emt 0:04:11]} 18. Ng5 {[%emt 0:03:41]} Nh5 {[%emt 0:03:05]} 19. Bxd5 {[%emt 0:12:23]} Rxd5 {[%emt 0:04:03]} 20. Ne4 {[%emt 0:02:23]} Rhd8 {[%emt 0:03:51]} 21. Qe3 {[%emt 0:01:41]} Ra5 {[%emt 0:01:12]} 22. Bh2 {[%emt 0:04:14]} Qb5 {[%emt 0:05:39]} 23. Nc3 {[%emt 0:06:14]} Qf5 {[%emt 0:10:40]} 24. Rg4 {[%emt 0:06:36]} Bc5 {[%emt 0:03:39]} 25. Qe2 {[%emt 0:03:13]} Be7 {[%emt 0:03:14]} 26. Rhg1 {[%emt 0:01:00]} h6 {[%emt 0:03:54]} 27. Rc4 {[%emt 0:04:48]} Bd6 {[%emt 0:01:49]} 28. Bxd6 {[%emt 0:00:34]} Rxd6 {[%emt 0:00:11]} 29. Ne4 {[%emt 0:01:32]} Rd8 {[%emt 0:01:49]} 30. Qe3 {[%emt 0:00:53]} Kb8 {[%emt 0:02:33]} 31. b4 {[%emt 0:02:46]} Rad5 {[%emt 0:01:46]} 32. Rc5 {[%emt 0:01:56]} Nf4 {[%emt 0:04:07]} 33. Rg4 {[%emt 0:00:44]} e5 {[%emt 0:01:07]} 34. Rxd5 {[%emt 0:01:30]} Nxd5 {[%emt 0:00:42]} 35. Qxh6 {[%emt 0:01:43]} Qxf3 {[%emt 0:01:04]} 36. Rg1 {[%emt 0:00:32]} Nxb4 {[%emt 0:03:20]} 37. Qg5 {[%emt 0:00:34]} Re8 {[%emt 0:02:36]} 38. Nf6 {[%emt 0:01:08]} Qxf2 {[%emt 0:01:12]} 39. Rg2 {[%emt 0:01:27]} Qe1+ {[%emt 0:00:33]} 40. Kb2 {[%emt 0:00:28]} Rc8 {[%emt 0:08:16]} 41. Nd7+ {[%emt 0:30:34]} Ka8 {[%emt 0:32:29]} 42. Qxe5 {[%emt 0:00:00]} Qxh4 {[%emt 0:00:00]} 43. Rh2 {[%emt 0:00:00]} Qd8 {[%emt 0:00:00]} 44. Qd6 {[%emt 0:00:00]} Nd5 {[%emt 0:00:00]} 45. c4 {[%emt 0:00:00]} Nb6 {[%emt 0:00:00]} 46. Nxb6+ {[%emt 0:00:00]} Qxb6+ {[%emt 0:00:00]} 47. Kc3 {[%emt 0:00:00]} Qa5+ {[%emt 0:00:00]} 48. Kb3 {[%emt 0:00:00]} Rd8 {[%emt 0:00:00]} 49. Qf6 {[%emt 0:00:00]} a6 {[%emt 0:00:00]} 50. d4 {[%emt 0:00:00]} Re8 {[%emt 0:00:00]} 51. Rh3 {[%emt 0:00:00]} Re2 {[%emt 0:00:00]} 0-1

[Event "41st Jacques-Lemans-Open 2022"]
[Site "St. Veit/Glan"]
[Date "2022.07.09"]
[Round "1.34"]
[White "Kienboeck, Benjamin"]
[Black "Blasge, Tobias"]
[Result "1-0"]
[ECO "B12"]
[WhiteElo "2151"]
[BlackElo "1826"]
[Annotator "RC"]
[PlyCount "83"]
[EventDate "2022.07.09"]
[EventType "swiss"]
[EventCountry "AUT"]
[SourceTitle "playchess.com"]
[Source "ChessBase"]
[SourceQuality "1"]
[TimeControl "40/5400+30:1800+30"]

1. e4 {[%emt 0:00:05]} c6 {[%emt 0:00:06]} 2. d4 {[%emt 0:00:09]} d5 {[%emt 0:00:03]} 3. e5 {[%emt 0:00:11]} Bf5 {[%emt 0:00:04]} 4. h4 {[%emt 0:00:12]} h5 {[%emt 0:00:10]} 5. Bd3 {[%emt 0:00:46]} Bxd3 {[%emt 0:01:29]} 6. Qxd3 {[%emt 0:00:09]} e6 {[%emt 0:07:18]} 7. Nf3 {[%emt 0:01:10]} c5 {[%emt 0:08:23]} 8. O-O {[%emt 0:13:43]} Nc6 {[%emt 0:13:27]} 9. Re1 {[%emt 0:07:51]} Be7 {[%emt 0:25:16]} 10. Bg5 {[%emt 0:07:08]} Bxg5 {[%emt 0:02:40]} 11. hxg5 {[%emt 0:00:24]} Nxd4 {[%emt 0:02:47]} 12. Nxd4 {[%emt 0:01:48]} cxd4 {[%emt 0:00:05]} 13. g6 {[%emt 0:00:11]} Qb6 {[%emt 0:20:58]} 14. gxf7+ {[%emt 0:09:02]} Kxf7 {[%emt 0:00:06]} 15. Qf3+ {[%emt 0:03:12]} Ke7 {[%emt 0:00:05]} 16. Qg3 {[%emt 0:01:36]} Kd7 {[%emt 0:02:04]} 17. a4 {[%emt 0:02:42]} Ne7 {[%emt 0:06:00]} 18. Ra3 {[%emt 0:09:05]} h4 {[%emt 0:02:31]} 19. Qd3 {[%emt 0:00:51]} Qb4 {[%emt 0:02:11]} 20. Nd2 {[%emt 0:05:35]} b6 {[%emt 0:00:56]} 21. a5 {[%emt 0:01:06]} Nf5 {[%emt 0:01:06]} 22. Rea1 {[%emt 0:01:29]} Rhc8 {[%emt 0:02:17]} 23. axb6 {[%emt 0:02:07]} Qxb6 {[%emt 0:00:11]} 24. Nf3 {[%emt 0:10:38]} Qxb2 {[%emt 0:01:18]} 25. Ng5 {[%emt 0:01:55]} Rc7 {[%emt 0:00:52]} 26. Nxe6 {[%emt 0:01:01]} Qxc2 {[%emt 0:00:34]} 27. Nxc7 {[%emt 0:00:31]} Qxd3 {[%emt 0:00:10]} 28. Rxd3 {[%emt 0:00:01]} Kxc7 {[%emt 0:00:07]} 29. Rf3 {[%emt 0:00:27]} g6 {[%emt 0:00:30]} 30. Ra6 {[%emt 0:00:19]} Ne7 {[%emt 0:00:46]} 31. Rf7 {[%emt 0:00:36]} Kd7 {[%emt 0:00:22]} 32. Rd6+ {[%emt 0:00:53]} Ke8 {[%emt 0:00:01]} 33. Rh7 {[%emt 0:00:13]} Rc8 {[%emt 0:01:22]} 34. Rh8+ {[%emt 0:00:35]} Kf7 {[%emt 0:00:04]} 35. Rxc8 {[%emt 0:00:08]} Nxc8 {[%emt 0:00:04]} 36. Rxd5 {[%emt 0:00:08]} Ke6 {[%emt 0:01:30]} 37. Rxd4 {[%emt 0:00:05]} Kxe5 {[%emt 0:00:23]} 38. Rxh4 {[%emt 0:00:12]} Nb6 {[%emt 0:00:30]} 39. Rh7 {[%emt 0:01:05]} a5 {[%emt 0:00:16]} 40. Rg7 {[%emt 0:00:31]} Kf5 {[%emt 0:00:52]} 41. Rb7 {[%emt 0:30:19]} Nc4 {[%emt 0:02:18]} 42. Rc7 {[%emt 0:00:00]} 1-0

[Event "41st Jacques-Lemans-Open 2022"]
[Site "St. Veit/Glan"]
[Date "2022.07.09"]
[Round "1.35"]
[White "Tumanyan, Gor"]
[Black "Hoffmann, Sebastian"]
[Result "1-0"]
[ECO "C50"]
[WhiteElo "1884"]
[BlackElo "2148"]
[Annotator "RC"]
[PlyCount "65"]
[EventDate "2022.07.09"]
[EventType "swiss"]
[EventCountry "AUT"]
[SourceTitle "playchess.com"]
[Source "ChessBase"]
[SourceQuality "1"]
[TimeControl "40/5400+30:1800+30"]

1. e4 {[%emt 0:00:03]} e5 {[%emt 0:00:06]} 2. Nf3 {[%emt 0:00:04]} Nc6 {[%emt 0:00:04]} 3. Bc4 {[%emt 0:00:03]} Bc5 {[%emt 0:00:06]} 4. O-O {[%emt 0:00:31]} Nf6 {[%emt 0:00:04]} 5. d4 {[%emt 0:00:18]} Bxd4 {[%emt 0:00:07]} 6. Nxd4 {[%emt 0:00:18]} Nxd4 {[%emt 0:00:05]} 7. f4 {[%emt 0:00:07]} d6 {[%emt 0:02:07]} 8. fxe5 {[%emt 0:00:17]} dxe5 {[%emt 0:00:02]} 9. Bg5 {[%emt 0:00:25]} Qe7 {[%emt 0:00:23]} 10. Rf2 {[%emt 0:08:03]} Be6 {[%emt 0:09:35]} 11. Na3 {[%emt 0:26:08]} O-O-O {[%emt 0:09:50]} 12. Qf1 {[%emt 0:12:04]} Rhg8 {[%emt 0:07:04]} 13. Kh1 {[%emt 0:06:07]} Bxc4 {[%emt 0:05:57]} 14. Nxc4 {[%emt 0:05:52]} Ne6 {[%emt 0:03:44]} 15. Bxf6 {[%emt 0:01:11]} gxf6 {[%emt 0:00:08]} 16. Ne3 {[%emt 0:04:17]} Nf4 {[%emt 0:06:39]} 17. g3 {[%emt 0:02:55]} Qc5 {[%emt 0:04:18]} 18. Re1 {[%emt 0:02:21]} Ne6 {[%emt 0:02:43]} 19. Nd5 {[%emt 0:13:33]} Kb8 {[%emt 0:10:20]} 20. b4 {[%emt 0:01:43]} Qf8 {[%emt 0:04:43]} 21. Rxf6 {[%emt 0:03:05]} Ng5 {[%emt 0:04:40]} 22. Qf5 {[%emt 0:02:04]} Qe8 {[%emt 0:04:21]} 23. h4 {[%emt 0:05:08]} Ne6 {[%emt 0:06:22]} 24. Qxe5 {[%emt 0:00:46]} Qd7 {[%emt 0:00:01]} 25. Ref1 {[%emt 0:00:52]} Nd4 {[%emt 0:01:41]} 26. Kh2 {[%emt 0:01:16]} Nc6 {[%emt 0:06:07]} 27. Qf5 {[%emt 0:01:02]} Qe8 {[%emt 0:08:56]} 28. Rxf7 {[%emt 0:00:43]} Ne5 {[%emt 0:00:01]} 29. Re7 {[%emt 0:00:41]} Ng4+ {[%emt 0:01:11]} 30. Qxg4 {[%emt 0:00:56]} Rxg4 {[%emt 0:02:30]} 31. Rxe8 {[%emt 0:00:04]} Rxe8 {[%emt 0:00:05]} 32. Nf6 {[%emt 0:00:05]} Rgxe4 {[%emt 0:01:12]} 33. Nxe4 {[%emt 0:00:06]} 1-0